bitfinex/quotes_SOLUSD_20240824
["timestamp","ask_amount","ask_price","bid_price","bid_amount"]
[1724520697063,0.83788815,161.39,161.29,20.0]
[1724520697263,16.0518,161.38,161.28,29.52040471]
[1724520697445,7.32468815,161.37,161.27,6.45752595]
[1724520697779,16.0518,161.36,161.25,29.52040471]
[1724520698467,0.83788815,161.35,161.25,29.52040471]
[1724520698671,16.0518,161.36,161.25,29.52040471]
[1724520698877,16.0518,161.36,161.26,45.073894]
[1724520699244,16.0518,161.36,161.26,48.65529694]
[1724520699889,16.0518,161.36,161.28,29.52040471]
[1724520700072,16.0518,161.36,161.31,29.52040471]
[1724520700251,6.4868,161.37,161.31,29.52040471]
[1724520700252,6.4868,161.37,161.32,65.0]
[1724520700764,6.4868,161.37,161.34,29.52040471]
[1724520700962,6.4868,161.37,161.35,20.0]
[1724520701754,6.4868,161.47,161.36,45.0]
[1724520701978,6.4868,161.47,161.37,20.0]
[1724520702469,0.83788815,161.46,161.37,20.0]
[1724520702853,0.83788815,161.45,161.37,20.0]
[1724520703056,6.4868,161.47,161.37,20.0]
[1724520703255,16.0518,161.46,161.37,20.0]
[1724520703553,0.83788815,161.45,161.37,20.0]
[1724520703756,16.0518,161.46,161.37,20.0]
[1724520704689,0.83788815,161.45,161.37,20.0]
[1724520704858,16.0518,161.46,161.37,20.0]
[1724520705053,16.0518,161.46,161.37,49.52040471]
[1724520705260,16.0518,161.46,161.4,29.52040471]
[1724520705471,16.0518,161.46,161.41,65.0]
[1724520705687,6.4868,161.47,161.43,29.52040471]
[1724520706000,16.0518,161.5,161.41,65.0]
[1724520706001,16.0518,161.5,161.46,29.52040471]
[1724520706284,15.1727,161.55,161.49,29.52040471]
[1724520706458,15.1727,161.55,161.5,20.0]
[1724520706666,15.1727,161.55,161.5,21.23807273]
[1724520706981,15.1727,161.55,161.5,20.0]
[1724520707181,15.1727,161.55,161.51,45.0]
[1724520707405,6.4306,161.56,161.52,20.0]
[1724520711292,6.4306,161.56,161.44,29.52040471]
[1724520712085,6.4306,161.56,161.41,283.71508262]
[1724520712289,6.4306,161.56,161.41,33.01349918]
[1724520712290,74.52040471,161.55,161.41,33.01349918]
[1724520712598,0.83788815,161.54,161.41,29.52040471]
[1724520712881,22.98598815,161.54,161.38,23.53153773]
[1724520713092,15.9577,161.54,161.38,20.0]
[1724520713763,15.9577,161.54,161.43,29.52040471]
[1724520714378,16.79558815,161.54,161.43,29.52040471]
[1724520714570,15.9577,161.54,161.44,45.0]
[1724520714961,15.9577,161.54,161.45,20.0]
[1724520715883,15.9577,161.54,161.46,45.0]
[1724520716095,15.9577,161.54,161.47,20.0]
[1724520717688,15.9577,161.54,161.48,45.0]
[1724520717990,15.9577,161.54,161.49,49.52040471]
[1724520718190,15.9577,161.54,161.5,45.0]
[1724520718388,15.9577,161.54,161.51,20.0]
[1724520718580,6.4306,161.56,161.51,20.0]
[1724520719680,6.4306,161.56,161.52,45.0]
[1724520719873,6.4306,161.56,161.53,20.0]
[1724520720996,6.4306,161.56,161.5,20.0]
[1724520721691,6.4306,161.56,161.51,45.0]
[1724520721897,6.4306,161.56,161.52,29.52040471]
[1724520722079,6.4306,161.56,161.53,65.0]
[1724520722273,15.9577,161.59,161.53,65.0]
[1724520723285,15.9577,161.59,161.53,20.0]
[1724520724489,15.9577,161.59,161.5,20.0]
[1724520724691,15.9577,161.59,161.51,45.0]
[1724520724880,15.9577,161.59,161.52,20.0]
[1724520725480,15.9577,161.59,161.5,20.0]
[1724520726490,15.9577,161.59,161.51,45.0]
[1724520726683,15.9577,161.59,161.52,20.0]
[1724520727809,15.9577,161.59,161.5,20.0]
[1724520728492,15.9577,161.59,161.51,45.0]
[1724520728689,15.9577,161.59,161.52,49.52040471]
[1724520728913,15.9577,161.59,161.53,45.0]
[1724520729206,15.9577,161.59,161.54,20.0]
[1724520730809,15.9577,161.59,161.55,45.0]
[1724520730986,15.9577,161.59,161.56,20.0]
[1724520731186,15.9577,161.59,161.54,20.0]
[1724520731586,15.9577,161.59,161.52,20.0]
[1724520731911,15.9577,161.59,161.53,45.0]
[1724520732211,15.9577,161.59,161.54,20.0]
[1724520732385,15.9577,161.59,161.55,45.0]
[1724520732590,15.9577,161.59,161.56,20.0]
[1724520735123,6.4379,161.61,161.56,20.0]
[1724520739230,16.4306,161.59,161.52,20.0]
[1724520739401,16.4306,161.59,161.49,3.41633509]
[1724520739605,16.4306,161.59,161.48,29.52040471]
[1724520740102,16.4306,161.59,161.51,29.52040471]
[1724520740507,16.4306,161.59,161.52,45.0]
[1724520740722,16.4306,161.59,161.53,20.0]
[1724520741034,16.4306,161.59,161.54,45.0]
[1724520741332,16.4306,161.59,161.55,20.0]
[1724520742827,16.4306,161.59,161.56,45.0]
[1724520743029,16.4306,161.59,161.57,20.0]
[1724520743330,6.4379,161.61,161.55,49.52040471]
[1724520743529,6.4379,161.61,161.56,45.0]
[1724520743827,6.4379,161.61,161.57,20.0]
[1724520744430,6.4379,161.61,161.57,43.54142636]
[1724520745310,6.2985,161.65,161.59,43.54142636]
[1724520745612,0.7508061,161.66,161.59,43.54142636]
[1724520745613,0.7508061,161.66,161.64,23.54142636]
[1724520745813,0.7508061,161.66,161.65,20.0]
[1724520746025,0.7508061,161.66,161.65,65.0]
[1724520746804,0.7508061,161.66,161.65,20.0]
[1724520747810,0.7508061,161.66,161.65,65.0]
[1724520748410,15.9576,161.72,161.65,94.38739293]
[1724520748721,15.9576,161.72,161.66,45.0]
[1724520748920,15.9576,161.72,161.67,20.0]
[1724520751450,15.9576,161.72,161.68,45.0]
[1724520751629,15.9576,161.72,161.69,19.5]
[1724520753136,15.9576,161.72,161.65,29.38739293]
[1724520753335,15.9576,161.72,161.66,45.0]
[1724520753526,6.0066,161.73,161.66,45.0]
[1724520753735,6.0066,161.73,161.67,20.0]
[1724520753933,6.0066,161.73,161.68,45.0]
[1724520754143,6.0066,161.73,161.69,20.0]
[1724520756348,15.0532,161.76,161.7,45.0]
[1724520757435,15.0532,161.76,161.71,20.0]
[1724520759343,15.0532,161.76,161.72,45.0]
[1724520762260,15.0532,161.76,161.71,20.0]
[1724520762441,15.0532,161.76,161.68,20.0]
[1724520762767,15.0532,161.76,161.69,45.0]
[1724520762949,15.0532,161.76,161.7,20.0]
[1724520763254,15.0532,161.76,161.66,16.463]
[1724520763255,15.0532,161.76,161.63,20.0]
[1724520763434,21.2352,161.76,161.63,49.38739293]
[1724520763852,15.0532,161.76,161.63,49.38739293]
[1724520764755,15.0532,161.76,161.64,20.0]
[1724520764944,15.0532,161.76,161.66,29.38739293]
[1724520765266,15.0532,161.76,161.67,20.0]
[1724520765436,15.0532,161.76,161.67,40.0]
[1724520765762,15.0532,161.76,161.68,45.0]
[1724520765964,15.0532,161.76,161.69,49.38739293]
[1724520766173,16.5569,161.8,161.72,29.38739293]
[1724520766456,16.5569,161.8,161.73,21.23607879]
[1724520766658,6.3535,161.81,161.75,49.38739293]
[1724520766847,0.8247001,161.82,161.78,29.38739293]
[1724520767041,0.8247001,161.82,161.79,45.0]
[1724520767245,0.8247001,161.82,161.8,20.0]
[1724520767475,0.8247001,161.82,161.81,45.0]
[1724520767859,0.8247001,161.82,161.81,65.0]
[1724520769763,0.8247001,161.82,161.81,94.38739293]
[1724520770263,0.8247001,161.82,161.81,114.38739293]
[1724520770470,0.8247001,161.82,161.81,108.47042563]
[1724520771041,0.8247001,161.82,161.81,88.47042563]
[1724520771480,21.3644,161.96,161.83,20.0]
[1724520771792,21.3644,161.96,161.86,23.47042563]
[1724520771982,21.3644,161.96,161.87,65.0]
[1724520775014,27.5388,161.96,161.87,20.0]
[1724520775289,27.5388,161.96,161.85,20.0]
[1724520775482,27.5388,161.96,161.86,45.0]
[1724520775691,21.3644,161.96,161.87,20.0]
[1724520776162,21.3644,161.96,161.88,45.0]
[1724520776492,21.3644,161.96,161.89,20.0]
[1724520776686,21.3644,161.96,161.9,45.0]
[1724520776888,21.3644,161.96,161.91,20.0]
[1724520780185,21.3644,161.96,161.88,3.47010672]
[1724520780384,21.3644,161.96,161.85,20.0]
[1724520781617,29.31125791,161.94,161.81,20.0]
[1724520782121,6.1751,161.94,161.81,20.0]
[1724520782683,21.3644,161.95,161.84,20.0]
[1724520782907,21.3644,161.95,161.86,29.31125791]
[1724520783210,21.3644,161.95,161.87,20.0]
[1724520783726,21.3644,161.95,161.88,45.0]
[1724520783914,21.3644,161.95,161.89,20.0]
[1724520784613,0.83788815,161.94,161.81,3.43028643]
[1724520784822,0.83788815,161.94,161.8,29.31125791]
[1724520784823,75.14914606,161.94,161.8,29.31125791]
[1724520785018,6.1806,161.84,161.71,16.4921]
[1724520785319,15.1838,161.83,161.72,29.31125791]
[1724520785496,0.83788815,161.82,161.7,20.0]
[1724520785694,15.1838,161.83,161.72,20.0]
[1724520786018,15.1838,161.83,161.74,49.31125791]
[1724520786229,15.1838,161.83,161.77,29.31125791]
[1724520786412,6.1806,161.84,161.77,49.31125791]
[1724520786619,15.8438,161.87,161.8,29.31125791]
[1724520787206,15.8438,161.87,161.81,20.0]
[1724520787407,6.4726,161.89,161.81,20.0]
[1724520787602,6.4726,161.89,161.82,45.0]
[1724520787809,6.4726,161.89,161.83,20.0]
[1724520788100,6.4726,161.89,161.81,20.0]
[1724520788301,6.4726,161.89,161.82,29.31125791]
[1724520788527,6.4726,161.89,161.83,20.0]
[1724520789223,6.4726,161.89,161.84,45.0]
[1724520789613,6.4726,161.89,161.85,20.0]
[1724520791735,6.4726,161.89,161.78,23.52424058]
[1724520791914,6.4726,161.89,161.78,20.0]
[1724520793228,6.4726,161.89,161.79,45.0]
[1724520793436,6.4726,161.89,161.8,20.0]
[1724520794024,6.4726,161.89,161.81,45.0]
[1724520794227,6.4726,161.89,161.82,20.0]
[1724520795121,7.31048815,161.89,161.82,20.0]
[1724520795443,6.4726,161.89,161.78,20.0]
[1724520796036,7.31048815,161.89,161.78,20.0]
[1724520796343,6.4726,161.89,161.78,20.0]
[1724520796539,15.5246,161.88,161.78,20.0]
[1724520798647,21.702,161.88,161.78,20.0]
[1724520798853,7.47218815,161.87,161.74,29.31125791]
[1724520799033,15.5246,161.83,161.74,29.31125791]
[1724520799439,0.83788815,161.82,161.74,29.31125791]
[1724520799835,6.6343,161.81,161.74,29.31125791]
[1724520800035,0.83788815,161.8,161.74,29.31125791]
[1724520800231,6.6343,161.81,161.74,29.31125791]
[1724520801354,6.6343,161.81,161.75,20.0]
[1724520803753,0.83788815,161.8,161.71,29.31125791]
[1724520803957,15.5246,161.79,161.71,29.31125791]
[1724520804643,15.5246,161.79,161.74,29.31125791]
[1724520805735,15.5246,161.79,161.75,20.0]
[1724520805934,16.36248815,161.79,161.75,20.0]
[1724520807028,15.5246,161.79,161.71,29.31125791]
[1724520807237,22.54338815,161.79,161.71,29.31125791]
[1724520807862,6.5867,161.77,161.68,29.31125791]
[1724520808537,0.83788815,161.76,161.69,20.0]
[1724520809670,6.5867,161.77,161.71,29.31125791]
[1724520809849,6.5867,161.77,161.72,20.0]
[1724520811037,6.5867,161.77,161.74,29.31125791]
[1724520811243,6.5867,161.77,161.75,20.0]
[1724520816069,15.5246,161.79,161.75,20.0]
[1724520816268,15.5246,161.79,161.77,29.31125791]
[1724520816459,22.0918,161.86,161.78,20.0]
[1724520816664,22.0918,161.86,161.83,29.31125791]
[1724520817141,22.0918,161.86,161.84,20.0]
[1724520819472,22.0918,161.86,161.8,29.31125791]
[1724520820170,0.83788815,161.85,161.8,29.31125791]
[1724520820556,0.83788815,161.85,161.77,29.31125791]
[1724520820955,0.83788815,161.85,161.78,20.0]
[1724520821645,22.0918,161.86,161.77,29.31125791]
[1724520822044,0.83788815,161.85,161.77,29.31125791]
[1724520822772,22.92968815,161.86,161.77,29.31125791]
[1724520822969,0.83788815,161.85,161.78,20.0]
[1724520823280,22.0918,161.86,161.78,20.0]
[1724520823646,6.5031,161.86,161.8,29.31125791]
[1724520823957,22.0918,161.9,161.83,29.31125791]
[1724520824153,22.0918,161.9,161.84,20.0]
[1724520824851,22.0918,161.9,161.86,29.31125791]
[1724520825055,22.0918,161.9,161.87,20.0]
[1724520825259,15.5887,161.95,161.89,29.31125791]
[1724520825463,15.5887,161.95,161.9,20.0]
[1724520825641,15.5887,161.95,161.92,29.31125791]
[1724520826246,6.5031,161.97,161.93,20.0]
[1724520827666,6.5031,161.97,161.9,20.0]
[1724520828045,6.5031,161.97,161.92,29.31125791]
[1724520828245,6.5031,161.97,161.93,20.0]
[1724520831065,6.5031,161.97,161.85,3.45776796]
[1724520831066,6.5031,161.97,161.89,29.31125791]
[1724520831273,6.5031,161.97,161.9,20.0]
[1724520831480,6.5031,161.97,161.91,1.23525412]
[1724520831776,6.5031,161.97,161.92,29.31125791]
[1724520832767,6.5031,161.97,161.93,21.23483886]
[1724520833477,6.5031,161.97,161.95,29.31125791]
[1724520834551,0.8247001,161.98,161.95,29.31125791]
[1724520834958,21.8536,162.06,161.96,66.23438562]
[1724520835157,21.8536,162.06,162.0,29.31125791]
[1724520836169,21.8536,162.06,161.97,29.31125791]
[1724520836358,21.8536,162.06,161.98,65.0]
[1724520837257,21.8536,162.06,161.98,20.0]
[1724520837966,28.0242,162.06,161.98,20.0]
[1724520838378,28.0242,162.06,161.95,21.23453948]
[1724520838572,28.0242,162.06,161.96,45.0]
[1724520838888,28.0242,162.06,161.97,20.0]
[1724520839286,6.171,162.05,161.94,29.31125791]
[1724520839702,6.171,162.05,161.95,45.0]
[1724520839888,22.5632,162.1,161.98,29.31125791]
[1724520840097,22.5632,162.1,162.01,29.31125791]
[1724520840891,28.7322,162.1,162.01,29.31125791]
[1724520841104,22.5632,162.1,162.02,20.0]
[1724520841394,22.5632,162.1,162.02,21.23407881]
[1724520841709,0.8247001,162.14,162.07,29.31125791]
[1724520841994,0.8247001,162.14,162.11,20.0]
[1724520842169,0.8247001,162.14,162.13,29.31125791]
[1724520842369,6.5339,162.22,162.13,94.31125791]
[1724520842611,6.5339,162.22,162.13,69.31125791]
[1724520842764,6.5339,162.22,162.14,65.0]
[1724520843178,16.0293,162.27,162.15,1.23301323]
[1724520843373,22.192,162.27,162.15,1.23301323]
[1724520843588,22.192,162.27,162.14,65.0]
[1724520843789,6.163,162.26,162.14,65.0]
[1724520846174,22.1919,162.27,162.14,65.0]
[1724520847003,6.1648,162.21,162.14,20.0]
[1724520847173,16.0293,162.27,162.1,20.0]
[1724520847174,6.1647,162.22,162.1,20.0]
[1724520847375,16.0293,162.27,162.12,20.0]
[1724520847902,6.1629,162.26,162.13,20.0]
[1724520848785,16.0293,162.27,162.14,94.31125791]
[1724520848984,16.0293,162.27,162.15,20.0]
[1724520849187,16.0293,162.27,162.16,45.0]
[1724520849499,16.0293,162.27,162.17,20.0]
[1724520849671,16.0293,162.27,162.18,45.0]
[1724520850200,6.1629,162.26,162.18,45.0]
[1724520850397,6.1633,162.25,162.18,45.0]
[1724520850799,6.1633,162.25,162.17,20.0]
[1724520851097,6.1633,162.25,162.15,20.0]
[1724520851296,6.1637,162.24,162.16,45.0]
[1724520851617,6.1633,162.26,162.17,20.0]
[1724520852098,6.1633,162.26,162.18,45.0]
[1724520852476,6.1633,162.25,162.18,45.0]
[1724520852676,6.1633,162.25,162.17,20.0]
[1724520852889,6.1633,162.25,162.15,20.0]
[1724520853175,6.1633,162.25,162.16,45.0]
[1724520853380,6.1633,162.25,162.17,20.0]
[1724520853707,16.0293,162.27,162.17,20.0]
[1724520853708,6.1637,162.24,162.17,20.0]
[1724520854093,6.1637,162.24,162.15,20.0]
[1724520855678,6.1637,162.24,162.16,45.0]
[1724520856102,6.1644,162.22,162.17,20.0]
[1724520856314,6.1663,162.18,162.12,3.42359301]
[1724520856502,29.31125791,162.19,162.06,20.0]
[1724520856807,29.31125791,162.19,162.06,3.50887825]
[1724520856994,29.31125791,162.19,162.06,20.0]
[1724520857493,6.1655,162.2,162.08,20.0]
[1724520858009,6.1655,162.2,162.09,45.0]
[1724520858786,6.4435,162.21,162.09,45.0]
[1724520858991,6.1656,162.19,162.09,45.0]
[1724520859312,6.1664,162.17,162.1,20.0]
[1724520859493,6.4435,162.21,162.11,45.0]
[1724520859699,6.4435,162.21,162.12,20.0]
[1724520859899,6.166,162.18,162.12,20.0]
[1724520860114,6.1656,162.19,162.12,20.0]
[1724520862302,12.6087,162.21,162.12,20.0]
[1724520862505,12.6087,162.21,162.13,45.0]
[1724520863619,6.4435,162.21,162.13,45.0]
[1724520863803,6.1652,162.2,162.12,20.0]
[1724520863998,6.1652,162.2,162.11,3.47897133]
[1724520864206,6.1657,162.19,162.09,20.0]
[1724520865526,6.1657,162.19,162.1,45.0]
[1724520865815,6.1657,162.19,162.11,20.0]
[1724520866219,6.4435,162.21,162.11,20.0]
[1724520866719,6.1654,162.2,162.12,45.0]
[1724520866913,6.1654,162.2,162.13,20.0]
[1724520867119,6.1658,162.19,162.13,20.0]
[1724520867420,6.1652,162.2,162.13,20.0]
[1724520867614,6.1656,162.19,162.13,20.0]
[1724520868133,6.1656,162.19,162.09,20.0]
[1724520868427,6.1656,162.19,162.1,45.0]
[1724520868832,6.1656,162.19,162.11,20.0]
[1724520869832,6.1656,162.19,162.11,21.23335621]
[1724520871427,6.4435,162.21,162.11,20.0]
[1724520871637,6.4435,162.21,162.12,45.0]
[1724520871831,12.6083,162.21,162.12,45.0]
[1724520872049,12.6083,162.21,162.13,20.0]
[1724520873049,6.1652,162.2,162.13,20.0]
[1724520873342,12.6083,162.21,162.14,1.23325582]
[1724520873637,12.6083,162.21,162.13,20.0]
[1724520873638,6.1652,162.2,162.13,20.0]
[1724520874032,6.1652,162.2,162.14,1.23324419]
[1724520874206,6.1652,162.2,162.13,20.0]
[1724520874409,6.1656,162.19,162.09,20.0]
[1724520874635,6.1656,162.19,162.1,45.0]
[1724520875016,6.1656,162.19,162.11,20.0]
[1724520875513,6.4435,162.21,162.11,20.0]
[1724520876531,6.4435,162.21,162.11,49.31125791]
[1724520876727,6.4435,162.21,162.12,45.0]
[1724520877034,12.6083,162.21,162.13,20.0]
[1724520877622,6.4435,162.21,162.13,20.0]
[1724520878546,12.6083,162.21,162.13,20.0]
[1724520881945,6.1653,162.2,162.13,20.0]
[1724520882151,12.6083,162.21,162.13,20.0]
[1724520884565,6.1644,162.22,162.13,20.0]
[1724520885660,6.165,162.21,162.13,20.0]
[1724520886456,6.1653,162.2,162.13,20.0]
[1724520886635,6.1656,162.19,162.11,20.0]
[1724520887061,6.1656,162.19,162.09,20.0]
[1724520887574,6.1656,162.19,162.1,1.2334531]
[1724520887866,6.1652,162.2,162.08,46.79303197]
[1724520888069,6.1652,162.2,162.1,23.39213183]
[1724520888254,6.1652,162.2,162.11,20.0]
[1724520889864,6.1649,162.21,162.19,0.06201374]
[1724520890765,23.39213183,162.24,162.19,0.06201374]
[1724520891065,6.1648,162.21,162.19,0.06201374]
[1724520892057,6.1644,162.22,162.19,0.06201374]
[1724520900265,12.5022,162.25,162.19,0.06201374]
[1724520900592,0.83788815,162.24,162.19,0.06201374]
[1724520901187,6.3386,162.25,162.19,0.06201374]
[1724520901404,6.1639,162.24,162.19,0.06201374]
[1724520902097,7.00218815,162.23,162.19,0.06201374]
[1724520902281,6.1643,162.23,162.19,0.06201374]
[1724520902795,6.3386,162.25,162.19,0.06201374]
[1724520904189,12.5021,162.25,162.19,0.06201374]
[1724520904978,6.1637,162.24,162.19,0.06201374]
[1724520905173,12.5019,162.25,162.19,0.06201374]
[1724520905373,0.83788815,162.23,162.19,0.06201374]
[1724520905577,12.5019,162.25,162.19,0.06201374]
[1724520905862,6.3386,162.25,162.19,0.06201374]
[1724520907380,12.5019,162.25,162.19,0.06201374]
[1724520912475,13.33978815,162.25,162.19,0.06201374]
[1724520913675,12.5019,162.25,162.19,0.06201374]
[1724520914088,6.3386,162.25,162.19,0.06201374]
[1724520916068,9.35159947,162.26,162.19,0.06201374]
[1724520917793,6.1633,162.25,162.19,0.06201374]
[1724520919074,6.163,162.26,162.19,0.06201374]
[1724520919486,25.38089947,162.27,162.19,0.06201374]
[1724520919682,25.38089947,162.27,162.19,9.41361321]
[1724520919683,6.1625,162.27,162.19,9.41361321]
[1724520920901,0.8247001,162.3,162.25,9.35159947]
[1724520921078,0.8247001,162.3,162.28,9.35159947]
[1724520921593,21.6278,162.39,162.28,9.35159947]
[1724520921790,6.41246435,162.43,162.29,45.0]
[1724520921995,0.8247001,162.46,162.3,1.23188561]
[1724520922174,6.9801001,162.46,162.36,9.35159947]
[1724520922484,6.9801001,162.46,162.42,9.35159947]
[1724520922485,0.8247001,162.46,162.42,9.35159947]
[1724520922685,0.8247001,162.46,162.44,9.35159947]
[1724520923269,0.8247001,162.46,162.41,6.1773]
[1724520923784,0.8247001,162.46,162.42,45.0]
[1724520924293,0.8247001,162.46,162.43,9.35159947]
[1724520924489,0.8247001,162.46,162.44,45.0]
[1724520925175,0.767096,162.5,162.45,65.0]
[1724520925376,0.767096,162.5,162.45,88.29221297]
[1724520925596,0.767096,162.5,162.45,108.29221297]
[1724520926096,0.767096,162.5,162.45,65.0]
[1724520927102,0.767096,162.5,162.45,20.0]
[1724520927290,0.767096,162.5,162.43,20.0]
[1724520927489,24.05930897,162.5,162.41,6.1773]
[1724520927714,0.767096,162.5,162.41,6.1773]
[1724520928273,23.29221297,162.49,162.42,1.23112709]
[1724520928623,0.767096,162.5,162.38,29.8913]
[1724520928913,0.767096,162.5,162.41,43.29221297]
[1724520929326,0.767096,162.5,162.41,20.0]
[1724520929496,0.767096,162.5,162.42,45.0]
[1724520929688,0.767096,162.5,162.43,43.29221297]
[1724520929891,0.767096,162.5,162.44,65.0]
[1724520930087,0.767096,162.5,162.45,20.0]
[1724520930324,0.767096,162.5,162.46,45.0]
[1724520930527,0.767096,162.5,162.47,20.0]
[1724520930726,0.767096,162.5,162.47,21.23050091]
[1724520931792,0.767096,162.5,162.48,45.0]
[1724520933297,0.767096,162.5,162.48,44.95]
[1724520933612,0.767096,162.5,162.49,1.23043091]
[1724520933818,0.767096,162.5,162.49,21.23043091]
[1724520934129,0.767096,162.5,162.49,20.0]
[1724520935113,0.767096,162.5,162.49,21.23039808]
[1724520935500,0.767096,162.5,162.49,65.0]
[1724520938003,0.767096,162.5,162.49,20.0]
[1724520938204,0.767096,162.5,162.49,1.23044236]
[1724520938726,0.767096,162.5,162.48,20.0]
[1724520940336,0.767096,162.5,162.49,1.23055589]
[1724520940528,0.767096,162.5,162.48,20.0]
[1724520940731,0.767096,162.5,162.48,21.23043492]
[1724520941017,0.767096,162.5,162.49,1.23043492]
[1724520941422,0.767096,162.5,162.48,21.23058321]
[1724520941726,0.767096,162.5,162.49,21.23058321]
[1724520942621,0.767096,162.5,162.46,21.23043189]
[1724520942808,0.767096,162.5,162.49,20.0]
[1724520943009,0.767096,162.5,162.49,21.23043301]
[1724520943512,0.767096,162.5,162.48,20.0]
[1724520943707,0.767096,162.5,162.43,9.97490544]
[1724520944013,0.767096,162.5,162.44,21.23068601]
[1724520944419,29.10544127,162.47,162.35,6.5689]
[1724520944624,29.10544127,162.47,162.35,30.1173144]
[1724520944625,35.26064127,162.47,162.35,30.1173144]
[1724520944808,6.1554,162.46,162.35,10.1173144]
[1724520945013,35.26044127,162.47,162.35,30.1173144]
[1724520945227,12.4305,162.46,162.35,3.5484144]
[1724520945424,12.4305,162.46,162.33,16.3311]
[1724520945621,6.2752,162.46,162.34,20.0]
[1724520945934,22.343496,162.5,162.4,20.0]
[1724520946110,29.10544127,162.47,162.33,19.79746068]
[1724520946428,35.26154127,162.44,162.3,49.10544127]
[1724520946608,29.10544127,162.44,162.3,49.10544127]
[1724520946803,29.10544127,162.44,162.32,20.0]
[1724520947007,6.1557,162.46,162.32,20.0]
[1724520947222,29.10544127,162.47,162.31,10.09851925]
[1724520947408,6.1562,162.44,162.31,10.09851925]
[1724520947615,6.1556,162.46,162.32,20.0]
[1724520948113,6.1565,162.43,162.31,10.09851925]
[1724520948311,6.1565,162.43,162.31,6.5689]
[1724520948312,29.10544127,162.43,162.31,6.5689]
[1724520948527,29.10544127,162.43,162.28,42.32299635]
[1724520948528,35.26224127,162.43,162.28,42.32299635]
[1724520948727,35.26224127,162.43,162.29,1.23168847]
[1724520948931,35.26224127,162.43,162.28,42.32299635]
[1724520949117,6.1568,162.42,162.28,42.32299635]
[1724520949314,6.1573,162.41,162.28,22.32299635]
[1724520949514,6.1577,162.4,162.28,22.32299635]
[1724520949709,57.07904127,162.4,162.28,6.40639635]
[1724520949917,0.83788815,162.39,162.28,6.40639635]
[1724520950121,6.1581,162.39,162.29,1.23186163]
[1724520950323,50.92114127,162.4,162.3,1.23199925]
[1724520950633,50.92114127,162.4,162.28,6.40639635]
[1724520951012,6.1585,162.38,162.28,6.40639635]
[1724520951218,50.92114127,162.4,162.25,49.10544127]
[1724520951219,6.1589,162.37,162.29,6.175]
[1724520951739,0.83788815,162.36,162.29,6.175]
[1724520951913,6.1591,162.37,162.29,6.175]
[1724520952234,0.83788815,162.36,162.3,6.175]
[1724520952428,29.94332942,162.37,162.3,6.175]
[1724520952741,35.26454127,162.37,162.3,6.175]
[1724520952924,29.10544127,162.37,162.3,6.175]
[1724520953326,29.10544127,162.37,162.24,6.175]
[1724520953327,6.1596,162.35,162.24,6.175]
[1724520953527,21.8157,162.4,162.26,6.175]
[1724520953729,21.8157,162.4,162.29,6.175]
[1724520953950,21.8157,162.4,162.29,7.4070517]
[1724520954150,6.158,162.39,162.31,6.175]
[1724520954447,21.8157,162.4,162.33,6.175]
[1724520955527,21.8157,162.4,162.34,6.175]
[1724520956541,21.8157,162.4,162.31,6.175]
[1724520956722,6.1567,162.43,162.33,6.175]
[1724520956923,6.1567,162.43,162.33,35.28044127]
[1724520957243,6.2486,162.44,162.33,35.28044127]
[1724520957244,6.2486,162.44,162.34,1.23170984]
[1724520957540,6.2486,162.44,162.35,6.175]